bitfinex-derivatives/quotes_SOLF0:USTF0_20241222
["timestamp","ask_amount","ask_price","bid_price","bid_amount"]
[1734869410811,2.6878,186.15,186.1,2.6884]
[1734869411514,2.6878,186.15,186.11,5.25212529]
[1734869411721,2.6878,186.15,186.12,5.25212529]
[1734869411915,2.6876,186.17,186.12,2.6882]
[1734869412618,2.6876,186.17,186.13,5.25605179]
[1734869412821,2.56,186.18,186.12,2.6882]
[1734869413119,2.56,186.18,186.09,3.3133]
[1734869413920,2.6885,186.11,186.09,3.3133]
[1734869415118,2.56,186.13,186.05,62.5466329]
[1734869415324,2.56,186.13,186.03,59.59189528]
[1734869415520,2.56,186.13,186.04,5.2601338]
[1734869415715,2.6891,186.06,186.04,5.2601338]
[1734869415916,2.56,186.09,186.05,5.2601338]
[1734869416221,2.6894,186.04,186.03,59.59189528]
[1734869416419,2.56,186.05,186.01,59.59189528]
[1734869416621,2.56,186.04,186.01,59.59189528]
[1734869416819,2.56,186.04,186.02,5.24097822]
[1734869417318,2.56,186.07,186.01,59.59189528]
[1734869417515,2.56,186.07,186.02,5.23820687]
[1734869417921,2.56,186.07,186.03,5.23820687]
[1734869418219,2.56,186.07,185.97,81.39945431]
[1734869418425,2.56,186.07,186.0,2.6899]
[1734869418723,2.56,186.07,186.01,5.23634196]
[1734869418926,2.6891,186.06,186.02,5.23634196]
[1734869419424,2.6891,186.06,186.03,5.23634196]
[1734869419623,2.6891,186.06,185.99,2.56]
[1734869419824,2.6891,186.06,186.0,5.23577285]
[1734869420023,2.56,186.07,186.01,5.23577285]
[1734869420226,2.6892,186.06,186.01,5.23577285]
[1734869420621,2.6892,186.06,186.02,5.23577285]
[1734869420822,2.6892,186.06,186.03,5.23577285]
[1734869421219,2.56,186.07,185.99,2.56]
[1734869421424,2.6892,186.05,186.0,7.92375931]
[1734869421825,2.6892,186.05,186.01,5.23385931]
[1734869422118,2.6892,186.05,186.02,5.23385931]
[1734869422429,2.6892,186.05,186.03,5.23385931]
[1734869422727,2.6892,186.05,186.0,2.6899]
[1734869422930,2.6892,186.05,186.01,5.23441653]
[1734869423125,2.6892,186.05,186.02,5.23441653]
[1734869423325,2.6892,186.05,186.03,5.23441653]
[1734869423829,2.6892,186.05,186.0,2.6899]
[1734869424230,2.6892,186.05,186.01,5.23417955]
[1734869424426,2.6892,186.05,186.02,5.23417955]
[1734869424624,2.6892,186.05,186.0,2.6899]
[1734869424830,2.6896,186.03,185.98,2.6901]
[1734869425031,2.6896,186.03,185.99,5.23433004]
[1734869425231,2.56,186.07,186.0,5.23433004]
[1734869425631,2.56,186.07,185.96,86.031416]
[1734869425828,2.56,186.07,185.97,5.23372367]
[1734869426034,2.6894,186.04,185.98,5.23382866]
[1734869426336,2.52,186.03,185.96,63.57463967]
[1734869426724,2.52,186.03,185.94,10.226]
[1734869427739,2.6901,185.99,185.94,10.226]
[1734869428037,2.52,186.03,185.94,7.5352]
[1734869428237,5.2096,186.03,185.94,7.5352]
[1734869428437,5.2096,186.03,185.97,2.6903]
[1734869429239,2.52,186.03,185.97,2.6903]
[1734869429539,2.6897,186.02,185.97,2.6903]
[1734869430238,2.6899,186.01,185.97,2.6903]
[1734869430739,2.52,186.03,185.94,7.7059]
[1734869430942,2.52,186.03,185.94,5.0152]
[1734869431334,2.6905,185.97,185.94,5.0152]
[1734869431737,2.52,186.03,185.94,5.0152]
[1734869431937,2.6899,186.01,185.96,2.6905]
[1734869432332,2.6899,186.01,185.94,5.0152]
[1734869432539,2.6897,186.02,185.94,5.0152]
[1734869433239,1.5659,186.12,185.95,2.52]
[1734869433540,3.46602113,186.11,185.95,2.52]
[1734869433841,2.6894,186.05,186.0,2.6899]
[1734869434049,2.52,186.11,186.0,2.6899]
[1734869435133,2.52,186.11,185.99,2.6901]
[1734869435542,2.6894,186.05,185.99,2.6901]
[1734869435942,2.52,186.07,185.98,2.6902]
[1734869436143,2.52,186.07,185.94,64.60709528]
[1734869436144,2.52,186.07,185.94,78.7974158]
[1734869436445,0.94579374,186.06,185.94,77.0757158]
[1734869436645,2.52,186.07,185.94,77.0757158]
[1734869436949,9.85,186.07,185.94,77.0757158]
[1734869437149,0.94579341,186.06,185.94,3.2935]
[1734869437348,9.85,186.07,185.94,3.2935]
[1734869437643,2.6901,186.0,185.94,5.9842]
[1734869437946,2.6901,186.0,185.94,3.2935]
[1734869438447,2.6901,186.0,185.95,5.16259267]
[1734869438741,2.52,186.03,185.96,5.16259267]
[1734869439046,2.52,186.06,185.97,5.16259267]
[1734869439246,7.33,186.07,185.98,5.16259267]
[1734869439446,7.33,186.07,185.99,2.6901]
[1734869439447,2.6894,186.04,185.99,2.6901]
[1734869439648,2.6894,186.04,186.0,1.691]
[1734869439841,7.33,186.07,186.0,1.691]
[1734869440146,2.6893,186.05,186.0,4.3808]
[1734869440541,7.33,186.07,186.0,1.691]
[1734869442638,7.33,186.07,185.94,77.0757158]
[1734869442842,7.33,186.07,185.94,81.3324158]
[1734869443043,2.6901,186.0,185.95,19.35190288]
[1734869443241,2.52,186.02,185.96,5.16158236]
[1734869443438,2.52,186.01,185.96,5.16158236]
[1734869443648,2.6905,185.96,185.95,14.19032052]
[1734869443950,5.2105,185.96,185.95,14.19032052]
[1734869444140,5.2105,185.96,185.92,14.19032052]
[1734869444141,2.6907,185.95,185.92,14.19032052]
[1734869444543,2.52,185.96,185.92,14.19032052]
[1734869445145,2.6907,185.95,185.92,14.19032052]
[1734869445345,2.52,185.96,185.92,14.19032052]
[1734869445646,2.52,185.96,185.85,73.7822158]
[1734869445847,2.52,185.96,185.9,2.6913]
[1734869446247,2.52,185.96,185.91,5.24738442]
[1734869446447,2.52,186.0,185.92,5.24738442]
[1734869446644,2.52,186.0,185.93,3.3127]
[1734869446850,2.52,186.0,185.94,5.24738442]
[1734869447154,2.52,186.0,185.95,5.24738442]
[1734869447448,2.52,186.0,185.93,3.3127]
[1734869447652,2.6904,185.97,185.93,3.3127]
[1734869447854,2.52,186.0,185.94,5.24622424]
[1734869448147,2.52,186.0,185.95,5.24622424]
[1734869448547,2.52,186.0,185.93,3.3127]
[1734869448749,2.52,186.0,185.94,5.24753372]
[1734869448944,2.6904,185.98,185.94,5.24753372]
[1734869449146,2.52,186.0,185.93,3.3127]
[1734869449954,7.4233,186.07,185.94,5.24859244]
[1734869450154,3.46577742,186.06,185.94,5.24859244]
[1734869450355,0.94577742,186.05,185.94,5.24859244]
[1734869450547,2.6906,185.96,185.9,16.88172052]
[1734869450753,2.6906,185.96,185.91,7.94090508]
[1734869450950,2.6906,185.96,185.91,9.67760508]
[1734869451146,2.6906,185.96,185.92,5.24970508]
[1734869451552,2.6906,185.96,185.93,5.24970508]
[1734869451851,2.6904,185.97,185.91,4.4279]
[1734869452167,2.52,185.98,185.92,5.25091483]
[1734869452550,2.52,185.98,185.93,5.25091483]
[1734869452854,2.52,185.98,185.91,1.7367]
[1734869453157,2.52,185.98,185.92,5.25491503]
[1734869453558,2.52,185.98,185.93,5.25491503]
[1734869453757,2.52,185.98,185.89,2.6915]
[1734869454059,2.52,185.98,185.9,5.25497199]
[1734869454560,2.52,185.98,185.91,5.25497199]
[1734869454863,2.52,185.98,185.92,5.25497199]
[1734869455256,2.52,185.98,185.93,5.25497199]
[1734869455560,2.6909,185.94,185.93,5.25497199]
[1734869455952,2.6909,185.94,185.88,5.0438]
[1734869456359,2.52,185.98,185.89,5.25898383]
[1734869456760,2.52,185.98,185.9,5.25898383]
[1734869456963,2.52,185.98,185.91,5.25898383]
[1734869457157,9.84,185.98,185.91,5.25898383]
[1734869457358,9.84,185.98,185.88,5.0438]
[1734869457359,9.84,185.98,185.92,5.25898383]
[1734869457758,15.2,185.98,185.88,5.0438]
[1734869457960,2.6912,185.92,185.88,5.0438]
[1734869458260,2.52,185.94,185.89,5.26132392]
[1734869458661,2.52,185.94,185.88,5.0438]
[1734869458662,2.52,185.94,185.9,5.26132392]
[1734869458963,2.52,185.94,185.91,5.26132392]
[1734869459160,2.6915,185.9,185.88,5.0438]
[1734869459362,2.6915,185.9,185.89,5.26386761]
[1734869460257,2.6913,185.91,185.89,5.26386761]
[1734869460555,2.52,185.9,185.89,3.28326761]
[1734869460758,2.52,185.9,185.84,81.15544875]
[1734869460966,2.6921,185.85,185.84,81.15544875]
[1734869461655,2.6921,185.85,185.79,36.28387603]
[1734869461656,2.52,185.86,185.79,14.21903252]
[1734869463266,3.1,185.87,185.79,14.21903252]
[1734869463469,3.1,185.88,185.74,4.8183]
[1734869463866,5.7917,185.88,185.81,2.6926]
[1734869464064,5.7917,185.88,185.82,5.0898]
[1734869464264,2.6917,185.88,185.82,5.0898]
[1734869464665,2.6919,185.87,185.82,5.0898]
[1734869464867,3.1,185.92,185.82,5.0898]
[1734869465966,2.6922,185.85,185.82,5.0898]
[1734869466370,2.6924,185.84,185.82,3.4595]
[1734869467062,3.1,185.87,185.82,3.4595]
[1734869467259,3.1,185.87,185.76,4.4212]
[1734869467459,2.02560683,185.95,185.76,5.0242]
[1734869467664,2.6928,185.81,185.76,5.0242]
[1734869468969,2.6929,185.8,185.76,5.0242]
[1734869469767,3.1,185.84,185.76,5.0242]
[1734869469961,2.693,185.79,185.76,5.0242]
[1734869470571,2.6927,185.82,185.76,5.0242]
[1734869470767,3.1,185.86,185.76,5.0242]
[1734869471173,2.6924,185.83,185.78,2.6931]
[1734869471773,3.1,185.86,185.76,7.7176]
[1734869472365,2.6926,185.82,185.76,7.7176]
[1734869473162,2.6929,185.8,185.76,5.0242]
[1734869473567,3.1,185.86,185.76,5.0242]
[1734869473764,2.6929,185.8,185.76,5.0242]
[1734869474570,2.6931,185.79,185.76,5.0242]
[1734869474781,3.1,185.86,185.76,5.0242]
[1734869475181,2.6932,185.78,185.76,5.0242]
[1734869475375,7.32,185.78,185.76,5.0242]
[1734869475572,2.6923,185.84,185.76,5.0242]
[1734869475777,3.1,185.88,185.76,5.0242]
[1734869475980,3.1,185.88,185.77,2.6932]
[1734869476182,2.6924,185.84,185.76,5.0242]
[1734869476381,3.1,185.88,185.76,5.0242]
[1734869476877,2.6923,185.85,185.76,5.0242]
[1734869477480,3.1,185.89,185.8,2.6927]
[1734869478183,2.6923,185.85,185.8,2.6927]
[1734869479081,3.1,185.89,185.76,5.0242]
[1734869479677,2.6926,185.82,185.78,2.6931]
[1734869480983,3.1,185.88,185.76,5.0242]
[1734869481177,5.35,185.82,185.76,5.0242]
[1734869481883,2.6928,185.81,185.77,2.6932]
[1734869482788,5.35,185.82,185.71,73.8109278]
[1734869482979,5.35,185.82,185.73,4.8625]
[1734869483385,2.693,185.79,185.75,2.6936]
[1734869483582,5.35,185.82,185.75,2.6936]
[1734869483878,5.35,185.82,185.73,4.8625]
[1734869485088,5.35,185.82,185.78,2.6931]
[1734869485089,8.0426,185.82,185.78,2.6931]
[1734869486191,5.35,185.82,185.79,2.6929]
[1734869486586,5.35,185.82,185.74,73.8109278]
[1734869486791,3.1,185.89,185.74,73.8109278]
[1734869487092,2.6922,185.85,185.74,73.8109278]
[1734869487288,2.6922,185.85,185.76,59.59189528]
[1734869487489,2.6922,185.85,185.77,3.1]
[1734869487686,3.1,185.89,185.82,2.6925]
[1734869487687,2.692,185.86,185.82,2.6925]
[1734869489789,3.1,185.89,185.81,15.88073252]
[1734869489992,2.6919,185.87,185.84,2.6923]
[1734869490188,3.1,185.89,185.84,2.6923]
[1734869491092,3.3794,185.94,185.85,2.6921]
[1734869491293,3.1,185.93,185.82,14.21903252]
[1734869491688,3.1,185.93,185.83,2.6924]
[1734869491895,3.1,185.93,185.81,61.25359528]
[1734869492893,2.6917,185.89,185.84,2.6922]
[1734869494297,2.6914,185.9,185.85,2.692]
[1734869495195,2.6914,185.9,185.82,62.55189528]
[1734869495401,2.6914,185.9,185.86,2.6919]
[1734869495603,6.3394,185.94,185.82,62.55189528]
[1734869495797,6.3394,185.94,185.84,2.6923]
[1734869496502,6.3394,185.94,185.83,59.59189528]
[1734869496802,0.94386433,185.93,185.83,59.59189528]
[1734869497199,2.96,185.92,185.83,59.59189528]
[1734869497399,0.94386433,185.91,185.83,59.59189528]
[1734869497601,0.94386433,185.91,185.79,2.6929]
[1734869497602,2.6922,185.85,185.79,2.6929]
[1734869497801,2.96,185.86,185.79,2.6929]
[1734869498301,2.96,185.86,185.78,1.5645]
[1734869498499,2.6924,185.83,185.78,4.2576]
[1734869500503,2.6926,185.82,185.78,4.2576]
[1734869503204,2.6927,185.81,185.78,4.2576]
[1734869503505,2.96,185.86,185.78,1.5645]
[1734869503702,2.693,185.79,185.78,1.5645]
[1734869505001,2.96,185.86,185.75,59.59189528]
[1734869505208,2.6933,185.78,185.75,59.59189528]
[1734869505603,2.98,185.81,185.73,59.59189528]
[1734869506310,2.6933,185.77,185.73,59.59189528]
[1734869507008,2.6933,185.77,185.72,2.6939]
[1734869508113,2.6935,185.76,185.72,2.6939]
[1734869509108,2.98,185.81,185.71,59.59189528]
[1734869509310,2.6934,185.76,185.73,2.6938]
[1734869509711,2.98,185.81,185.73,2.6938]
[1734869509910,2.98,185.81,185.71,59.59189528]
[1734869510510,1.6199,185.84,185.71,59.59189528]
[1734869510710,2.98,185.83,185.71,59.59189528]
[1734869511010,2.693,185.8,185.72,2.98]
[1734869511209,2.98,185.84,185.73,3.4207]
[1734869511610,2.6928,185.81,185.75,2.6935]
[1734869511810,2.98,185.84,185.73,3.4207]
[1734869512009,2.98,185.84,185.73,6.4007]
[1734869512208,2.6928,185.81,185.74,2.6937]
[1734869512410,2.98,185.84,185.74,2.6937]
[1734869512911,2.693,185.8,185.74,2.6937]
[1734869513612,2.693,185.8,185.73,3.4207]
[1734869513807,2.693,185.8,185.75,2.6936]
[1734869515812,2.693,185.79,185.75,2.6936]
[1734869516203,2.98,185.84,185.74,2.6937]
[1734869517009,2.6932,185.78,185.74,2.6937]
[1734869517714,2.6933,185.78,185.73,6.1144]
[1734869517915,2.98,185.84,185.73,2.6937]
[1734869518219,2.6934,185.77,185.73,2.6937]
[1734869518511,4.6589,185.84,185.72,2.694]
[1734869519012,2.6934,185.77,185.72,2.694]
[1734869519218,2.6934,185.77,185.73,2.6939]
[1734869519815,2.6931,185.79,185.74,2.6937]
[1734869520317,2.6928,185.81,185.76,2.6933]
[1734869520616,2.98,185.84,185.76,2.6933]
[1734869520917,1.677,185.9,185.75,2.98]
[1734869521119,2.98,185.89,185.76,5.0242]
[1734869521614,2.6922,185.85,185.76,5.0242]
[1734869521817,1.6041,185.91,185.76,21.1742]
[1734869522113,1.6889,185.94,185.78,16.15]
[1734869522319,2.6913,185.91,185.78,16.15]
[1734869523413,2.6913,185.91,185.82,59.59189528]
[1734869523619,2.6913,185.91,185.83,6.3751]
[1734869523919,2.6917,185.89,185.84,2.6922]
[1734869524213,2.96,185.9,185.82,59.59189528]
[1734869524609,2.6923,185.84,185.83,14.21539193]
[1734869525418,2.96,185.9,185.78,15.93699193]
[1734869526213,2.96,185.9,185.8,2.6928]
[1734869526214,2.6923,185.85,185.8,2.6928]
[1734869528008,2.96,185.9,185.78,1.7216]
[1734869528209,2.6917,185.88,185.83,2.6923]
[1734869528915,2.96,185.91,185.79,14.2131252]
[1734869529515,2.96,185.91,185.87,2.6917]
[1734869529823,4.98560683,185.95,185.82,2.96]
[1734869530122,1.5849,186.0,185.83,3.2968]
[1734869530320,0.94518358,185.99,185.83,3.2968]
[1734869530617,4.5449,186.0,185.91,2.6912]
[1734869530819,4.5449,186.0,185.88,2.96]
[1734869531020,4.5449,186.0,185.84,2.96]
[1734869531214,4.5449,186.0,185.86,59.59189528]
[1734869532119,2.691,185.94,185.85,82.53958087]
[1734869532511,4.5449,186.0,185.85,82.53958087]
[1734869532713,0.94564876,185.99,185.85,82.53958087]
[1734869533111,2.6914,185.91,185.85,85.23168087]
[1734869533309,2.96,185.93,185.88,59.59189528]
[1734869534112,2.96,185.93,185.85,1.6004]
[1734869534515,2.6915,185.9,185.85,1.6004]
[1734869534817,2.96,185.93,185.85,1.6004]
[1734869535017,2.6916,185.89,185.85,1.6004]
[1734869535319,2.96,185.93,185.84,59.59189528]
[1734869535620,3.351,185.92,185.84,59.59189528]
[1734869535823,3.351,185.92,185.83,59.59189528]
[1734869536214,2.6923,185.84,185.83,59.59189528]
[1734869536520,2.96,185.85,185.8,59.59189528]
[1734869537318,2.96,185.85,185.78,59.59189528]
[1734869537516,2.96,185.85,185.8,2.6927]
[1734869537721,2.96,185.85,185.78,59.59189528]
[1734869538124,2.6925,185.83,185.78,59.59189528]
[1734869538321,2.96,185.85,185.78,59.59189528]
[1734869538925,2.6929,185.8,185.78,59.59189528]
[1734869539221,2.96,185.85,185.76,59.59189528]
[1734869539520,2.6928,185.81,185.76,59.59189528]
[1734869540220,2.6928,185.81,185.75,62.28539528]
[1734869541424,2.6933,185.77,185.76,15.49420174]
[1734869542323,2.6933,185.77,185.74,1.6531]
[1734869543118,2.96,185.8,185.74,1.6531]
[1734869545427,2.6933,185.78,185.74,1.6531]
[1734869546425,3.3047,185.84,185.74,1.6531]
[1734869546723,2.96,185.86,185.74,4.6131]
[1734869547129,2.6927,185.81,185.76,2.6934]
[1734869547422,2.6927,185.81,185.77,5.19282922]
[1734869547632,2.96,185.86,185.77,5.19282922]
[1734869547931,2.96,185.86,185.75,59.59189528]
[1734869548429,0.94455138,185.85,185.75,59.59189528]
[1734869548629,2.6933,185.78,185.74,1.6531]
[1734869549925,2.96,185.8,185.71,59.59189528]
[1734869550330,2.6939,185.74,185.72,5.19335748]
[1734869550628,3.2698,185.79,185.71,59.59189528]
[1734869550830,2.6938,185.74,185.71,59.59189528]
[1734869551032,3.2698,185.79,185.68,59.59189528]
[1734869551531,3.2698,185.79,185.69,5.19271179]
[1734869551730,2.6941,185.72,185.69,5.19271179]
[1734869551933,2.6941,185.72,185.7,5.19271179]
[1734869552129,2.6941,185.72,185.69,15.48802253]
[1734869552735,2.6941,185.72,185.7,5.19153288]
[1734869553035,2.6941,185.72,185.67,62.28649528]
[1734869553234,2.6941,185.72,185.68,5.19153513]
[1734869553529,2.6939,185.74,185.69,5.19153513]
[1734869553930,2.6939,185.74,185.68,2.6946]
[1734869553931,2.96,185.75,185.7,5.19153513]
[1734869554433,2.96,185.75,185.68,2.6946]
[1734869554834,2.96,185.75,185.69,5.18996152]
[1734869555034,2.96,185.75,185.68,2.6946]
[1734869555536,2.6939,185.73,185.68,2.6946]
[1734869555727,3.2698,185.79,185.66,61.32149528]
[1734869556029,2.94,185.78,185.67,5.18924628]
[1734869556233,5.3835,185.88,185.67,5.18924628]
[1734869556439,7.16389911,185.87,185.68,5.18924628]
[1734869556632,2.6931,185.79,185.69,5.18924628]
[1734869556936,2.94,185.8,185.74,2.6937]
[1734869557233,2.94,185.8,185.7,5.18924628]
[1734869557234,2.94,185.81,185.71,59.59189528]
[1734869557534,2.6939,185.74,185.71,59.59189528]
[1734869558136,2.6939,185.74,185.69,2.6944]
[1734869558335,2.94,185.75,185.7,5.1877264]
[1734869558534,2.94,185.75,185.7,2.6942]
[1734869560242,2.94,185.75,185.69,2.6944]
[1734869560429,2.94,185.75,185.7,5.18609251]
[1734869560633,2.6939,185.73,185.7,5.18609251]
[1734869560947,2.94,185.75,185.67,59.59189528]
[1734869561135,2.6943,185.7,185.68,5.18600736]
[1734869561437,2.94,185.75,185.67,59.59189528]
[1734869561638,2.6942,185.71,185.67,59.59189528]
[1734869561840,2.6942,185.71,185.66,7.3644]
[1734869562037,2.6942,185.71,185.66,4.6696]
[1734869562238,2.6942,185.71,185.67,7.87876992]
[1734869562540,2.6942,185.71,185.67,2.6947]
[1734869563244,2.6944,185.7,185.66,4.4245]
[1734869563542,2.6944,185.7,185.67,5.18285861]
[1734869563938,2.6944,185.7,185.66,1.7296]
[1734869564438,2.6944,185.7,185.67,7.87666665]
[1734869564837,2.6944,185.7,185.67,2.6947]
[1734869565143,2.94,185.75,185.66,1.7296]
[1734869565344,2.6946,185.69,185.67,5.18111282]
[1734869565641,2.6946,185.69,185.66,1.7296]
[1734869565837,2.6947,185.68,185.66,1.7296]
[1734869567744,2.94,185.74,185.66,1.7296]
[1734869568247,2.6941,185.72,185.66,1.7296]
[1734869568445,2.94,185.74,185.66,1.7296]
[1734869569549,2.6945,185.69,185.66,1.7296]
[1734869570553,2.694,185.73,185.68,2.6946]
[1734869571248,2.694,185.73,185.69,15.52369005]
[1734869571450,5.6336,185.75,185.7,2.6943]
[1734869571648,5.6336,185.75,185.69,15.52369005]
[1734869571649,2.6936,185.75,185.69,15.52369005]
[1734869571854,2.6936,185.75,185.68,59.59189528]
[1734869572048,2.6936,185.75,185.7,2.6942]
[1734869572748,2.6936,185.75,185.71,98.43553701]
[1734869572953,2.6936,185.75,185.71,101.12973701]
[1734869573857,2.6936,185.75,185.72,98.43553701]
[1734869574449,2.6936,185.75,185.73,15.53745669]
[1734869575057,2.6936,185.75,185.72,59.59189528]
[1734869575353,3.2796,185.87,185.72,59.59189528]
[1734869575655,3.2796,185.87,185.73,3.3953]
[1734869575854,3.2796,185.87,185.74,59.59189528]
[1734869576069,2.6926,185.83,185.77,2.6932]
[1734869576362,3.2796,185.87,185.77,2.6932]
[1734869576565,2.6928,185.82,185.77,2.6932]
[1734869576760,2.6928,185.82,185.78,15.55513539]
[1734869577468,2.693,185.8,185.78,15.55513539]
[1734869577661,2.693,185.8,185.79,15.55513539]
[1734869578457,2.693,185.8,185.77,59.59189528]
[1734869578662,2.6927,185.82,185.77,62.28519528]
[1734869578864,2.6927,185.82,185.78,15.5488957]
[1734869579367,2.6931,185.79,185.78,15.5488957]
[1734869579867,2.94,185.8,185.77,59.59189528]
[1734869580663,2.6934,185.78,185.74,59.59189528]
[1734869581161,2.6934,185.78,185.75,5.20287914]
[1734869581464,2.6934,185.78,185.73,62.28579528]
[1734869581665,2.94,185.83,185.74,5.205541]
[1734869581865,2.94,185.83,185.75,5.205541]
[1734869582166,2.94,185.83,185.76,5.205541]
[1734869582370,2.94,185.83,185.77,5.205541]
[1734869582867,2.94,185.83,185.78,5.205541]
[1734869583269,5.6323,185.85,185.78,15.54670519]
[1734869583468,2.94,185.85,185.78,15.54670519]
[1734869583869,2.693,185.8,185.76,59.59189528]
[1734869584070,2.693,185.8,185.79,5.35855087]
[1734869584574,2.94,185.85,185.79,5.35855087]
[1734869584772,2.94,185.85,185.76,59.59189528]
[1734869584773,2.6929,185.81,185.76,62.28539528]
[1734869584972,2.94,185.85,185.76,59.59189528]
[1734869585267,2.6929,185.81,185.77,13.93423341]
[1734869585469,2.6929,185.81,185.77,29.48403128]
[1734869585664,2.6929,185.81,185.78,5.35932054]
[1734869585867,2.6929,185.81,185.79,5.35932054]
[1734869586264,2.6929,185.81,185.76,2.6934]
[1734869586471,2.6929,185.81,185.77,5.32798593]
[1734869586874,2.6929,185.81,185.78,5.32798593]
[1734869587072,2.6929,185.81,185.79,5.32798593]
[1734869587270,2.6929,185.81,185.76,2.6934]
[1734869587774,2.6929,185.81,185.77,5.32781544]
[1734869588071,2.6929,185.81,185.78,5.32781544]
[1734869588375,2.6931,185.79,185.78,5.32781544]
[1734869588672,2.94,185.85,185.78,5.32741452]
[1734869589076,2.94,185.85,185.79,5.32741452]
[1734869589266,2.94,185.85,185.75,59.59189528]
[1734869589774,2.94,185.85,185.76,5.32735869]
[1734869590076,2.94,185.85,185.76,20.87058668]
[1734869590275,2.6931,185.79,185.77,5.32735869]
[1734869590576,2.94,185.85,185.77,5.32735869]
[1734869590875,2.693,185.8,185.78,5.32735869]
[1734869591272,2.693,185.8,185.75,2.6935]
[1734869591772,2.693,185.8,185.76,5.32707748]
[1734869591967,2.693,185.8,185.77,5.32707748]
[1734869592377,2.693,185.8,185.78,5.32707748]
[1734869592877,2.693,185.8,185.74,61.18989528]
[1734869593077,2.693,185.8,185.75,5.32822072]
[1734869593378,2.693,185.8,185.76,5.32822072]
[1734869593677,2.693,185.8,185.77,5.32822072]
[1734869594079,2.693,185.8,185.78,5.32822072]
[1734869594277,2.693,185.8,185.79,5.32822072]
[1734869602780,2.84,185.82,185.79,5.32822072]
[1734869602981,2.84,185.82,185.8,5.32822072]
[1734869603180,2.84,185.86,185.74,61.18989528]
[1734869603685,2.6925,185.83,185.79,2.693]
[1734869603880,2.84,185.86,185.8,5.26219122]
[1734869604183,2.6927,185.82,185.8,5.26219122]
[1734869604383,2.6927,185.82,185.81,5.26219122]
[1734869608690,2.6927,185.82,185.78,59.59189528]
[1734869609086,2.6927,185.82,185.79,5.26204669]
[1734869609585,2.6927,185.82,185.8,5.26204669]
[1734869609791,2.6927,185.82,185.78,62.28509528]
[1734869610089,2.6927,185.82,185.79,5.26246443]
[1734869610389,2.6927,185.82,185.8,98.57536954]
[1734869610588,2.6927,185.82,185.8,103.83783397]
[1734869610790,2.6927,185.82,185.8,98.57536954]
[1734869611289,2.6927,185.82,185.81,15.5933897]
[1734869612187,2.6927,185.82,185.81,10.43831651]
[1734869612393,2.6928,185.81,185.8,59.59189528]
[1734869612687,5.5328,185.81,185.8,57.36037941]
[1734869612990,2.84,185.81,185.74,89.38784292]
[1734869613585,2.6936,185.75,185.74,89.38784292]
[1734869613791,5.4336,185.75,185.74,89.38784292]
[1734869613992,2.74,185.75,185.72,89.38784292]
[1734869614795,2.6939,185.73,185.72,89.38784292]
[1734869614995,2.6939,185.73,185.71,91.12304292]
[1734869615698,2.6939,185.73,185.72,22.87905961]
[1734869619596,2.74,185.75,185.69,89.38784292]
[1734869620798,2.74,185.75,185.65,92.54644292]
[1734869621301,2.6946,185.68,185.65,92.54644292]
[1734869621700,2.6946,185.68,185.65,3.1586]
[1734869621997,2.74,185.71,185.65,3.1586]
[1734869622398,2.74,185.74,185.65,3.1586]
[1734869622597,2.6941,185.72,185.66,2.6948]
[1734869623095,2.74,185.75,185.65,3.1586]
[1734869623299,2.6944,185.7,185.65,3.1586]
[1734869625200,2.6944,185.69,185.65,3.1586]
[1734869628104,2.74,185.75,185.65,3.1586]